[Event "*** Titled Tuesday Blitz"]
[Site "Chess.com"]
[Date "2021.02.16"]
[Round "10"]
[White "aa175"]
[Black "PowerThinking2650"]
[Result "1-0"]
[WhiteElo "2613"]
[BlackElo "2440"]
[TimeControl "180+1"]
[EndTime "12:00:52 PST"]
[Termination "aa175 won by resignation"]

1. d4 {[%clk 0:03:00.9]} 1... Nf6 {[%clk 0:02:59]} 2. Nf3 {[%clk 0:03:00.3]}
2... g6 {[%clk 0:02:59.1]} 3. Bf4 {[%clk 0:03:00.2]} 3... Bg7 {[%clk 0:02:59]}
4. e3 {[%clk 0:03:00.1]} 4... O-O {[%clk 0:02:58.9]} 5. Be2 {[%clk 0:03:00.1]}
5... d5 {[%clk 0:02:57.9]} 6. O-O {[%clk 0:02:58.5]} 6... c5 {[%clk 0:02:57.6]}
7. c3 {[%clk 0:02:58.4]} 7... Nc6 {[%clk 0:02:52.7]} 8. Nbd2 {[%clk 0:02:58.1]}
8... cxd4 {[%clk 0:02:51.7]} 9. exd4 {[%clk 0:02:56.2]} 9... Nh5 {[%clk
0:02:51.5]} 10. Bg5 {[%clk 0:02:53.7]} 10... h6 {[%clk 0:02:51.3]} 11. Bh4
{[%clk 0:02:53.8]} 11... g5 {[%clk 0:02:50.9]} 12. Bg3 {[%clk 0:02:54]} 12... f6
{[%clk 0:02:50.9]} 13. Qc2 {[%clk 0:02:46.7]} 13... Nxg3 {[%clk 0:02:48.7]} 14.
hxg3 {[%clk 0:02:46.2]} 14... e5 {[%clk 0:02:49.3]} 15. dxe5 {[%clk 0:02:46.4]}
15... fxe5 {[%clk 0:02:49.6]} 16. Rad1 {[%clk 0:02:33.6]} 16... Be6 {[%clk
0:02:20.2]} 17. Bd3 {[%clk 0:02:28.1]} 17... e4 {[%clk 0:02:10.6]} 18. Nxe4
{[%clk 0:02:24]} 18... dxe4 {[%clk 0:02:10.9]} 19. Bxe4 {[%clk 0:02:24.9]} 19...
Qf6 {[%clk 0:02:00.3]} 20. Rd6 {[%clk 0:02:20.8]} 20... Rad8 {[%clk 0:01:57.9]}
21. Rfd1 {[%clk 0:02:17.9]} 21... Qe7 {[%clk 0:01:46.6]} 22. Rxd8 {[%clk
0:02:00]} 22... Rxd8 {[%clk 0:01:47.5]} 23. Rxd8+ {[%clk 0:01:59.5]} 23... Qxd8
{[%clk 0:01:47.9]} 24. Qe2 {[%clk 0:01:53.5]} 24... Qf6 {[%clk 0:01:16.2]} 25.
Nd2 {[%clk 0:01:45.2]} 25... Bf5 {[%clk 0:01:12.6]} 26. Bd5+ {[%clk 0:01:42.3]}
26... Kh7 {[%clk 0:01:11.3]} 27. g4 {[%clk 0:01:41.2]} 27... Bg6 {[%clk
0:01:10.4]} 28. Be4 {[%clk 0:01:38.5]} 28... Ne5 {[%clk 0:01:08.1]} 29. Bxb7
{[%clk 0:01:35.2]} 29... Qf4 {[%clk 0:01:04.2]} 30. f3 {[%clk 0:01:25.5]} 30...
Bf8 {[%clk 0:00:47.8]} 31. Be4 {[%clk 0:01:23.4]} 31... Bc5+ {[%clk 0:00:46.5]}
32. Kh1 {[%clk 0:01:18.8]} 32... Qg3 {[%clk 0:00:39.5]} 33. Bxg6+ {[%clk
0:01:18.6]} 33... Nxg6 {[%clk 0:00:33.5]} 34. Nf1 {[%clk 0:01:17.1]} 34... Qf2
{[%clk 0:00:28.8]} 35. Qxf2 {[%clk 0:01:13.1]} 35... Bxf2 {[%clk 0:00:29.7]} 36.
Nd2 {[%clk 0:01:11.3]} 36... Ne5 {[%clk 0:00:23.7]} 37. Ne4 {[%clk 0:01:12.2]}
37... Bb6 {[%clk 0:00:22.8]} 38. b3 {[%clk 0:01:09.3]} 38... Kg6 {[%clk
0:00:20.7]} 39. a4 {[%clk 0:01:08.1]} 39... a5 {[%clk 0:00:20.2]} 40. b4 {[%clk
0:01:07.9]} 40... Nd3 {[%clk 0:00:17]} 41. bxa5 {[%clk 0:01:04.7]} 41... Bxa5
{[%clk 0:00:17.8]} 42. c4 {[%clk 0:01:03.2]} 42... Nb2 {[%clk 0:00:17.5]} 43. c5
{[%clk 0:01:00.7]} 43... Nxa4 {[%clk 0:00:17.5]} 44. c6 {[%clk 0:01:00.2]} 44...
Kf7 {[%clk 0:00:16.3]} 45. Nd6+ {[%clk 0:00:58.7]} 45... Ke6 {[%clk 0:00:16.3]}
46. Nf5 {[%clk 0:00:59.3]} 46... Bd2 {[%clk 0:00:13.7]} 47. Nxh6 {[%clk
0:00:54]} 47... Kd6 {[%clk 0:00:13.7]} 48. g3 {[%clk 0:00:50.5]} 48... Kxc6
{[%clk 0:00:13.2]} 49. Kg2 {[%clk 0:00:50.4]} 49... Nc5 {[%clk 0:00:12.9]} 50.
Nf5 {[%clk 0:00:49.5]} 50... Nd3 {[%clk 0:00:11.8]} 51. Kf1 {[%clk 0:00:43.3]}
51... Ne5 {[%clk 0:00:10.3]} 52. Ke2 {[%clk 0:00:41.3]} 52... Bc1 {[%clk
0:00:10.3]} 53. Nd4+ {[%clk 0:00:37.4]} 53... Kd5 {[%clk 0:00:09.5]} 54. Nc2
{[%clk 0:00:34.9]} 54... Bb2 {[%clk 0:00:08.8]} 55. Ne3+ {[%clk 0:00:34]} 55...
Ke6 {[%clk 0:00:08.8]} 56. Nc2 {[%clk 0:00:32.1]} 56... Bc3 {[%clk 0:00:08.6]}
57. Ne3 {[%clk 0:00:31.9]} 57... Bd4 {[%clk 0:00:08.6]} 58. Nf5 {[%clk
0:00:31.6]} 58... Bc5 {[%clk 0:00:08.7]} 59. Nh6 {[%clk 0:00:29.1]} 59... Nc6
{[%clk 0:00:08.4]} 60. f4 {[%clk 0:00:28.2]} 60... Nd4+ {[%clk 0:00:07.9]} 61.
Kd3 {[%clk 0:00:27.5]} 61... gxf4 {[%clk 0:00:07.9]} 62. gxf4 {[%clk 0:00:27.9]}
62... Nc6 {[%clk 0:00:07.6]} 63. Ke4 {[%clk 0:00:26.9]} 63... Ne7 {[%clk
0:00:07.4]} 64. g5 {[%clk 0:00:24.5]} 64... Ba3 {[%clk 0:00:06.6]} 65. f5+
{[%clk 0:00:24.6]} 65... Kd7 {[%clk 0:00:05.2]} 66. f6 {[%clk 0:00:19.4]} 66...
Bc1 {[%clk 0:00:04.3]} 67. f7 {[%clk 0:00:04.5]} 67... Ng6 {[%clk 0:00:04.4]}
68. Kf5 {[%clk 0:00:04.9]} 68... Nf8 {[%clk 0:00:04.5]} 69. Ng4 {[%clk
0:00:01.7]} 69... Ke7 {[%clk 0:00:03.8]} 70. g6 {[%clk 0:00:01.9]} 70... Nxg6
{[%clk 0:00:03.5]} 71. Kxg6 {[%clk 0:00:02.1]} 71... Bb2 {[%clk 0:00:03.8]} 72.
Nf2 {[%clk 0:00:02.3]} 72... Ba1 {[%clk 0:00:04]} 73. Ne4 {[%clk 0:00:02.5]}
73... Kf8 {[%clk 0:00:04.2]} 74. Ng5 {[%clk 0:00:02.7]} 74... Bc3 {[%clk
0:00:03.8]} 75. Nh7+ {[%clk 0:00:02.8]} 75... Ke7 {[%clk 0:00:03.9]} 76. f8=Q+
{[%clk 0:00:03.2]} 1-0

[Event "*** Titled Tuesday Blitz"]
[Site "Chess.com"]
[Date "2021.02.16"]
[Round "10"]
[White "seorobert1971"]
[Black "ChampStan"]
[Result "1-0"]
[WhiteElo "2725"]
[BlackElo "2317"]
[TimeControl "180+1"]
[EndTime "12:00:59 PST"]
[Termination "seorobert1971 won by resignation"]

1. Nf3 {[%clk 0:03:00.9]} 1... Nf6 {[%clk 0:02:57]} 2. d4 {[%clk 0:03:00]} 2...
g6 {[%clk 0:02:56.6]} 3. c4 {[%clk 0:03:00]} 3... Bg7 {[%clk 0:02:56.5]} 4. Nc3
{[%clk 0:03:00.2]} 4... d5 {[%clk 0:02:56.5]} 5. cxd5 {[%clk 0:02:59.3]} 5...
Nxd5 {[%clk 0:02:56.5]} 6. Qb3 {[%clk 0:02:58.8]} 6... Nb6 {[%clk 0:02:34.7]} 7.
e4 {[%clk 0:02:46.8]} 7... O-O {[%clk 0:02:31.8]} 8. Be3 {[%clk 0:02:44.4]} 8...
Bg4 {[%clk 0:02:12.2]} 9. Rd1 {[%clk 0:02:42.3]} 9... a5 {[%clk 0:02:07.5]} 10.
Be2 {[%clk 0:02:40.8]} 10... a4 {[%clk 0:02:06.9]} 11. Qc2 {[%clk 0:02:38.6]}
11... Nc6 {[%clk 0:02:05.5]} 12. d5 {[%clk 0:02:36.4]} 12... Nb4 {[%clk
0:02:03]} 13. Qd2 {[%clk 0:02:34.2]} 13... Bxf3 {[%clk 0:01:56.6]} 14. gxf3
{[%clk 0:02:32.1]} 14... a3 {[%clk 0:01:52.3]} 15. b3 {[%clk 0:02:22.2]} 15...
c6 {[%clk 0:01:29.3]} 16. Bc5 {[%clk 0:02:16.4]} 16... Na6 {[%clk 0:01:04.7]}
17. Bxa3 {[%clk 0:02:10.8]} 17... cxd5 {[%clk 0:00:45.5]} 18. Nxd5 {[%clk
0:02:07.1]} 18... Nxd5 {[%clk 0:00:44.8]} 19. Qxd5 {[%clk 0:02:07]} 19... Bc3+
{[%clk 0:00:41.6]} 20. Kf1 {[%clk 0:02:06.1]} 20... Qb6 {[%clk 0:00:42.1]} 21.
Bxe7 {[%clk 0:02:04]} 21... Rfe8 {[%clk 0:00:41.8]} 22. Bd6 {[%clk 0:01:48.1]}
22... Rad8 {[%clk 0:00:23.1]} 23. Bc4 {[%clk 0:01:47.6]} 23... Re6 {[%clk
0:00:23.5]} 24. e5 {[%clk 0:01:23.6]} 24... Bxe5 {[%clk 0:00:22.5]} 25. Qxe6
{[%clk 0:00:55.6]} 25... fxe6 {[%clk 0:00:14.8]} 26. Bxe6+ {[%clk 0:00:55.3]}
26... Kg7 {[%clk 0:00:14.9]} 27. Bxe5+ {[%clk 0:00:55.4]} 27... Kh6 {[%clk
0:00:14.2]} 28. Rxd8 {[%clk 0:00:52.1]} 28... Qb5+ {[%clk 0:00:12]} 29. Bc4
{[%clk 0:00:47.4]} 29... Qxe5 {[%clk 0:00:12.8]} 30. Bxa6 {[%clk 0:00:45.3]}
30... bxa6 {[%clk 0:00:13.3]} 31. Rd2 {[%clk 0:00:41.6]} 31... Qf4 {[%clk
0:00:11.9]} 32. Ke2 {[%clk 0:00:31]} 32... Qe5+ {[%clk 0:00:11.9]} 33. Kd3
{[%clk 0:00:27.7]} 33... Qd5+ {[%clk 0:00:10.9]} 34. Kc2 {[%clk 0:00:24.4]}
34... Qxf3 {[%clk 0:00:11]} 35. Rhd1 {[%clk 0:00:24.4]} 35... Qe4+ {[%clk
0:00:09.2]} 36. Kc1 {[%clk 0:00:22.6]} 36... Qe5 {[%clk 0:00:08.2]} 37. f3
{[%clk 0:00:21.1]} 37... Qa1+ {[%clk 0:00:07.2]} 38. Kc2 {[%clk 0:00:21.2]}
38... Qxa2+ {[%clk 0:00:08.1]} 39. Kc3 {[%clk 0:00:21.3]} 39... Qa5+ {[%clk
0:00:08.7]} 40. b4 {[%clk 0:00:18.1]} 40... Qe5+ {[%clk 0:00:08.8]} 41. Kb3
{[%clk 0:00:18.1]} 41... a5 {[%clk 0:00:08.6]} 42. Rd5 {[%clk 0:00:14.3]} 42...
Qxh2 {[%clk 0:00:03.4]} 43. bxa5 {[%clk 0:00:14.2]} 43... Qb8+ {[%clk
0:00:03.2]} 44. Ka4 {[%clk 0:00:13.8]} 44... Qe8+ {[%clk 0:00:02.9]} 45. Kb4
{[%clk 0:00:13.4]} 45... Qe7+ {[%clk 0:00:02.8]} 46. Kb5 {[%clk 0:00:13.3]}
46... Qe2+ {[%clk 0:00:02.9]} 47. Kb6 {[%clk 0:00:13]} 47... Qb2+ {[%clk
0:00:03.4]} 48. Ka7 {[%clk 0:00:13]} 48... Qf2+ {[%clk 0:00:03.1]} 49. R5d4
{[%clk 0:00:11.6]} 49... Qxf3 {[%clk 0:00:04]} 50. a6 {[%clk 0:00:11.3]} 50...
Qf7+ {[%clk 0:00:03.7]} 51. Rd7 {[%clk 0:00:10.4]} 51... Qf2+ {[%clk 0:00:04.1]}
52. Kb7 {[%clk 0:00:10.3]} 52... Qf3+ {[%clk 0:00:04.3]} 53. R1d5 {[%clk
0:00:09.7]} 53... Qb3+ {[%clk 0:00:04.7]} 54. Kc7 {[%clk 0:00:09.7]} 54... Qc3+
{[%clk 0:00:04.3]} 55. Kb6 {[%clk 0:00:09.7]} 55... Qb4+ {[%clk 0:00:04.4]} 56.
Rb5 {[%clk 0:00:09.7]} 56... Qf4 {[%clk 0:00:02.7]} 57. a7 {[%clk 0:00:08.8]}
57... Qe3+ {[%clk 0:00:03]} 58. Kb7 {[%clk 0:00:07.3]} 58... Qe4+ {[%clk
0:00:02.9]} 59. Rdd5 {[%clk 0:00:07.3]} 59... Qe7+ {[%clk 0:00:02.2]} 60. Ka6
{[%clk 0:00:08.2]} 60... Qe8 {[%clk 0:00:02.3]} 61. Rd6 {[%clk 0:00:05.3]} 61...
Qc8+ {[%clk 0:00:02.2]} 62. Kb6 {[%clk 0:00:05.3]} 62... Qa8 {[%clk 0:00:02.3]}
63. Rc6 {[%clk 0:00:04.5]} 63... Qd8+ {[%clk 0:00:01.7]} 64. Rc7 {[%clk
0:00:04.4]} 64... Qd6+ {[%clk 0:00:01.3]} 65. Kb7 {[%clk 0:00:04.4]} 65... Qe6
{[%clk 0:00:01.4]} 66. a8=Q {[%clk 0:00:03.6]} 1-0

[Event "*** Titled Tuesday Blitz"]
[Site "Chess.com"]
[Date "2021.02.16"]
[Round "10"]
[White "Piccadilly123"]
[Black "Lady_Nika"]
[Result "1-0"]
[WhiteElo "2258"]
[BlackElo "2362"]
[TimeControl "180+1"]
[EndTime "12:01:01 PST"]
[Termination "Piccadilly123 won by checkmate"]

1. e4 {[%clk 0:03:00.9]} 1... c6 {[%clk 0:02:58.9]} 2. Nc3 {[%clk 0:03:00.4]}
2... d5 {[%clk 0:02:58]} 3. d4 {[%clk 0:03:01.3]} 3... dxe4 {[%clk 0:02:57.3]}
4. Nxe4 {[%clk 0:03:02.2]} 4... Bf5 {[%clk 0:02:57.4]} 5. Ng3 {[%clk 0:03:02.5]}
5... Bg6 {[%clk 0:02:57.4]} 6. h4 {[%clk 0:03:03]} 6... h6 {[%clk 0:02:56.7]} 7.
Nf3 {[%clk 0:03:03.5]} 7... Nd7 {[%clk 0:02:56.6]} 8. h5 {[%clk 0:03:03.9]} 8...
Bh7 {[%clk 0:02:56.9]} 9. Bd3 {[%clk 0:03:04.5]} 9... Bxd3 {[%clk 0:02:57]} 10.
Qxd3 {[%clk 0:03:05.4]} 10... Ngf6 {[%clk 0:02:57.5]} 11. Bd2 {[%clk 0:03:06]}
11... e6 {[%clk 0:02:57.9]} 12. O-O-O {[%clk 0:03:06.5]} 12... Be7 {[%clk
0:02:58.5]} 13. Ne4 {[%clk 0:03:06.6]} 13... Nxe4 {[%clk 0:02:58.8]} 14. Qxe4
{[%clk 0:03:07.5]} 14... Nf6 {[%clk 0:02:59.2]} 15. Qe2 {[%clk 0:03:07.8]} 15...
Qd5 {[%clk 0:02:59.3]} 16. c4 {[%clk 0:03:07.8]} 16... Qf5 {[%clk 0:02:48.9]}
17. Ne5 {[%clk 0:02:57.3]} 17... O-O {[%clk 0:02:48]} 18. f3 {[%clk 0:02:48.2]}
18... c5 {[%clk 0:02:45.5]} 19. g4 {[%clk 0:02:46.5]} 19... Qh7 {[%clk
0:02:45.5]} 20. g5 {[%clk 0:02:23.3]} 20... hxg5 {[%clk 0:02:44.4]} 21. Bxg5
{[%clk 0:02:24.2]} 21... cxd4 {[%clk 0:02:44.3]} 22. h6 {[%clk 0:01:46.3]} 22...
d3 {[%clk 0:02:30.4]} 23. Qe3 {[%clk 0:01:05.9]} 23... Bb4 {[%clk 0:02:20.3]}
24. Bxf6 {[%clk 0:00:34.5]} 24... d2+ {[%clk 0:02:19.7]} 25. Rxd2 {[%clk
0:00:34.8]} 25... Bxd2+ {[%clk 0:02:19.1]} 26. Qxd2 {[%clk 0:00:32.6]} 26...
gxf6 {[%clk 0:02:19.3]} 27. Rg1+ {[%clk 0:00:32.2]} 27... Kh8 {[%clk 0:02:19.5]}
28. Rg7 {[%clk 0:00:32.6]} 28... fxe5 {[%clk 0:01:57.5]} 29. Rxh7+ {[%clk
0:00:31.8]} 29... Kxh7 {[%clk 0:01:57.4]} 30. Qg5 {[%clk 0:00:31.3]} 30... Rg8
{[%clk 0:01:57.4]} 31. Qf6 {[%clk 0:00:31.6]} 31... Raf8 {[%clk 0:01:55.1]} 32.
b4 {[%clk 0:00:29.5]} 32... Rg6 {[%clk 0:01:54.2]} 33. Qxe5 {[%clk 0:00:29.5]}
33... Rxh6 {[%clk 0:01:53.9]} 34. c5 {[%clk 0:00:28.8]} 34... Rh1+ {[%clk
0:01:50.3]} 35. Kb2 {[%clk 0:00:27.6]} 35... Rd8 {[%clk 0:01:48.7]} 36. Qe4+
{[%clk 0:00:19.9]} 36... Kg8 {[%clk 0:01:44.8]} 37. Qxb7 {[%clk 0:00:20.1]}
37... Rh2+ {[%clk 0:01:42.3]} 38. Kb3 {[%clk 0:00:18.2]} 38... Rd3+ {[%clk
0:01:41.3]} 39. Kc4 {[%clk 0:00:18.5]} 39... Rdd2 {[%clk 0:01:39.5]} 40. Qxa7
{[%clk 0:00:16]} 40... Rc2+ {[%clk 0:01:37.1]} 41. Kb5 {[%clk 0:00:15.8]} 41...
Rxa2 {[%clk 0:01:37.1]} 42. Qb8+ {[%clk 0:00:16.5]} 42... Kg7 {[%clk 0:01:37]}
43. Qe5+ {[%clk 0:00:16.5]} 43... Kf8 {[%clk 0:01:35.4]} 44. Qd6+ {[%clk
0:00:16.2]} 44... Kg7 {[%clk 0:01:34.9]} 45. c6 {[%clk 0:00:16.4]} 45... Rh5+
{[%clk 0:01:33]} 46. Kb6 {[%clk 0:00:15.8]} 46... Rh8 {[%clk 0:01:22.3]} 47. c7
{[%clk 0:00:13.8]} 47... Rc2 {[%clk 0:01:20.7]} 48. Qe5+ {[%clk 0:00:10.9]}
48... Kg8 {[%clk 0:01:15.5]} 49. Kb7 {[%clk 0:00:07.6]} 49... Rh4 {[%clk
0:01:09.2]} 50. c8=Q+ {[%clk 0:00:06.6]} 50... Rxc8 {[%clk 0:01:08.3]} 51. Kxc8
{[%clk 0:00:07.5]} 51... Rxb4 {[%clk 0:01:07.3]} 52. Qg5+ {[%clk 0:00:07.4]}
52... Kh7 {[%clk 0:01:07.3]} 53. Qh5+ {[%clk 0:00:07]} 53... Kg7 {[%clk
0:01:05.9]} 54. Qg5+ {[%clk 0:00:06.9]} 54... Kh7 {[%clk 0:01:05.2]} 55. Qf6
{[%clk 0:00:07.5]} 55... Rc4+ {[%clk 0:01:04.2]} 56. Kd8 {[%clk 0:00:07.5]}
56... Kg8 {[%clk 0:01:03.7]} 57. Ke7 {[%clk 0:00:06.6]} 57... Rc7+ {[%clk
0:01:03.4]} 58. Ke8 {[%clk 0:00:06.9]} 58... Rc8+ {[%clk 0:01:03.4]} 59. Kd7
{[%clk 0:00:07.4]} 59... Ra8 {[%clk 0:01:01.9]} 60. Qg5+ {[%clk 0:00:06.5]}
60... Kh7 {[%clk 0:01:01.1]} 61. Ke7 {[%clk 0:00:06.5]} 61... Ra3 {[%clk
0:00:44.1]} 62. f4 {[%clk 0:00:06.4]} 62... e5 {[%clk 0:00:26.7]} 63. fxe5
{[%clk 0:00:04.1]} 63... Ra7+ {[%clk 0:00:25.6]} 64. Kf6 {[%clk 0:00:04.3]}
64... Ra6+ {[%clk 0:00:25.2]} 65. Kf5 {[%clk 0:00:04.9]} 65... Re6 {[%clk
0:00:23.2]} 66. Qh5+ {[%clk 0:00:04.8]} 66... Kg8 {[%clk 0:00:23.2]} 67. Qg5+
{[%clk 0:00:04.2]} 67... Kf8 {[%clk 0:00:23.1]} 68. Qd8+ {[%clk 0:00:04.7]}
68... Kg7 {[%clk 0:00:22.7]} 69. Qd7 {[%clk 0:00:05.3]} 69... Kf8 {[%clk
0:00:17.1]} 70. Qc7 {[%clk 0:00:03.8]} 70... Re8 {[%clk 0:00:14.3]} 71. Qd7
{[%clk 0:00:03.8]} 71... Re6 {[%clk 0:00:13.7]} 72. Qc8+ {[%clk 0:00:03.3]}
72... Re8 {[%clk 0:00:13.4]} 73. Qc5+ {[%clk 0:00:02.5]} 73... Kg7 {[%clk
0:00:13.3]} 74. Kg5 {[%clk 0:00:01.7]} 74... Rxe5+ {[%clk 0:00:13.2]} 75. Qxe5+
{[%clk 0:00:01.5]} 75... f6+ {[%clk 0:00:13.6]} 76. Qxf6+ {[%clk 0:00:02.4]}
76... Kh7 {[%clk 0:00:14.2]} 77. Qf7+ {[%clk 0:00:02.5]} 77... Kh8 {[%clk
0:00:14.3]} 78. Qe7 {[%clk 0:00:03.4]} 78... Kg8 {[%clk 0:00:14.4]} 79. Kg6
{[%clk 0:00:04.3]} 79... Kh8 {[%clk 0:00:14.9]} 80. Qg7# {[%clk 0:00:05.2]} 1-0

[Event "*** Titled Tuesday Blitz"]
[Site "Chess.com"]
[Date "2021.02.16"]
[Round "10"]
[White "muchojogo"]
[Black "FMOlexandrProhorov"]
[Result "1-0"]
[WhiteElo "2330"]
[BlackElo "2122"]
[TimeControl "180+1"]
[EndTime "12:01:02 PST"]
[Termination "muchojogo won on time"]

1. e4 {[%clk 0:03:00.9]} 1... c5 {[%clk 0:03:00.9]} 2. Nf3 {[%clk 0:02:59.7]}
2... e6 {[%clk 0:03:01.8]} 3. d4 {[%clk 0:03:00.1]} 3... cxd4 {[%clk 0:03:02.7]}
4. Nxd4 {[%clk 0:03:00.6]} 4... Qb6 {[%clk 0:03:03.6]} 5. Be3 {[%clk 0:02:59.9]}
5... Nf6 {[%clk 0:02:57.3]} 6. Nd2 {[%clk 0:02:40.7]} 6... Nc6 {[%clk
0:02:55.1]} 7. Nc4 {[%clk 0:02:32.4]} 7... Qd8 {[%clk 0:02:42.7]} 8. Nxc6 {[%clk
0:02:24.6]} 8... bxc6 {[%clk 0:02:30.7]} 9. Be2 {[%clk 0:02:24.4]} 9... Nxe4
{[%clk 0:02:29]} 10. O-O {[%clk 0:02:23.6]} 10... d5 {[%clk 0:02:28.2]} 11. Bf3
{[%clk 0:02:23.9]} 11... Nf6 {[%clk 0:02:25.7]} 12. Ne5 {[%clk 0:02:20.7]} 12...
Qc7 {[%clk 0:02:25.9]} 13. Bf4 {[%clk 0:02:18.2]} 13... Bd6 {[%clk 0:02:26.4]}
14. Re1 {[%clk 0:02:18.9]} 14... O-O {[%clk 0:02:26.4]} 15. c4 {[%clk
0:02:17.8]} 15... Rb8 {[%clk 0:02:25.2]} 16. c5 {[%clk 0:02:17.7]} 16... Bxc5
{[%clk 0:02:20.3]} 17. Ng6 {[%clk 0:02:17.8]} 17... Bd6 {[%clk 0:02:12.8]} 18.
Bxd6 {[%clk 0:02:17.4]} 18... Qxd6 {[%clk 0:02:12.9]} 19. Nxf8 {[%clk
0:02:18.3]} 19... Kxf8 {[%clk 0:02:13.4]} 20. Qa4 {[%clk 0:02:15.9]} 20... Rb7
{[%clk 0:02:07.5]} 21. Rac1 {[%clk 0:02:14.7]} 21... c5 {[%clk 0:02:06.1]} 22.
Qa3 {[%clk 0:02:09]} 22... Rc7 {[%clk 0:02:05.8]} 23. Red1 {[%clk 0:02:07.6]}
23... e5 {[%clk 0:01:54.6]} 24. Qd3 {[%clk 0:01:59]} 24... Bb7 {[%clk
0:01:49.9]} 25. Qf5 {[%clk 0:01:53.6]} 25... g6 {[%clk 0:01:37.5]} 26. Qg5
{[%clk 0:01:53.3]} 26... Kg7 {[%clk 0:01:36.9]} 27. h4 {[%clk 0:01:52.6]} 27...
h6 {[%clk 0:01:34.4]} 28. Qe3 {[%clk 0:01:51.6]} 28... e4 {[%clk 0:01:32.9]} 29.
Be2 {[%clk 0:01:44.9]} 29... d4 {[%clk 0:01:28.3]} 30. Qa3 {[%clk 0:01:45.4]}
30... Ba8 {[%clk 0:01:15.5]} 31. Bc4 {[%clk 0:01:42.7]} 31... Qf4 {[%clk
0:01:11.4]} 32. Qg3 {[%clk 0:01:42.3]} 32... Nh5 {[%clk 0:01:08.4]} 33. Qxf4
{[%clk 0:01:41.3]} 33... Nxf4 {[%clk 0:01:09.3]} 34. g3 {[%clk 0:01:42.2]} 34...
Ne6 {[%clk 0:01:06]} 35. Bxe6 {[%clk 0:01:42]} 35... fxe6 {[%clk 0:01:06.9]} 36.
Rxd4 {[%clk 0:01:42.7]} 36... Kf6 {[%clk 0:01:04.3]} 37. Rdc4 {[%clk 0:01:41]}
37... Bd5 {[%clk 0:01:01.1]} 38. Rxc5 {[%clk 0:01:41.4]} 38... Rb7 {[%clk
0:01:01.5]} 39. b3 {[%clk 0:01:41.1]} 39... Ke5 {[%clk 0:01:02]} 40. Rc7 {[%clk
0:01:39.9]} 40... Rb4 {[%clk 0:00:59.3]} 41. Rxa7 {[%clk 0:01:39.3]} 41... Rd4
{[%clk 0:00:59.6]} 42. Rac7 {[%clk 0:01:27.8]} 42... Rd3 {[%clk 0:00:53.5]} 43.
R7c3 {[%clk 0:01:25.3]} 43... Rd2 {[%clk 0:00:51.5]} 44. R3c2 {[%clk 0:01:25.8]}
44... Rd3 {[%clk 0:00:51.7]} 45. Re1 {[%clk 0:01:24.7]} 45... g5 {[%clk
0:00:42.5]} 46. hxg5 {[%clk 0:01:22.8]} 46... hxg5 {[%clk 0:00:43.4]} 47. Re3
{[%clk 0:01:22.9]} 47... Rd1+ {[%clk 0:00:43.1]} 48. Kg2 {[%clk 0:01:23.4]}
48... Ra1 {[%clk 0:00:43.2]} 49. Rb2 {[%clk 0:01:19]} 49... Kd4 {[%clk
0:00:40.2]} 50. b4 {[%clk 0:01:16.6]} 50... Bb7 {[%clk 0:00:39.3]} 51. a3 {[%clk
0:01:14.4]} 51... e5 {[%clk 0:00:35.6]} 52. b5 {[%clk 0:01:14.3]} 52... g4
{[%clk 0:00:35.2]} 53. Rb4+ {[%clk 0:01:13.5]} 53... Kd5 {[%clk 0:00:33.5]} 54.
b6 {[%clk 0:01:11.5]} 54... Rd1 {[%clk 0:00:28.2]} 55. Rb5+ {[%clk 0:01:10.3]}
55... Kd4 {[%clk 0:00:24.6]} 56. Rb4+ {[%clk 0:01:09.9]} 56... Kd5 {[%clk
0:00:24.7]} 57. a4 {[%clk 0:01:04.3]} 57... Ra1 {[%clk 0:00:13.5]} 58. Rb5+
{[%clk 0:01:03.1]} 58... Kd6 {[%clk 0:00:13]} 59. a5 {[%clk 0:01:01.5]} 59...
Ke6 {[%clk 0:00:12.8]} 60. Kh2 {[%clk 0:00:51.8]} 60... Kd6 {[%clk 0:00:12.1]}
61. Rb2 {[%clk 0:00:38.7]} 61... Rxa5 {[%clk 0:00:11.6]} 62. Rb1 {[%clk
0:00:39]} 62... Ra2 {[%clk 0:00:11.5]} 63. Kg2 {[%clk 0:00:38.9]} 63... Ke6
{[%clk 0:00:11.3]} 64. Kf1 {[%clk 0:00:37.4]} 64... Rc2 {[%clk 0:00:09.9]} 65.
Ra3 {[%clk 0:00:36.5]} 65... Kf5 {[%clk 0:00:05.4]} 66. Ra7 {[%clk 0:00:36]}
66... Bd5 {[%clk 0:00:05.2]} 67. b7 {[%clk 0:00:35]} 67... Bxb7 {[%clk
0:00:04.7]} 68. Raxb7 {[%clk 0:00:35.7]} 68... e3 {[%clk 0:00:05.2]} 69. fxe3
{[%clk 0:00:35.7]} 69... Ke4 {[%clk 0:00:06.1]} 70. Rf7 {[%clk 0:00:31]} 70...
Kxe3 {[%clk 0:00:06.1]} 71. Re1+ {[%clk 0:00:30.9]} 71... Kd4 {[%clk 0:00:05.9]}
72. Rd7+ {[%clk 0:00:31]} 72... Kc5 {[%clk 0:00:05.7]} 73. Rxe5+ {[%clk
0:00:31.4]} 73... Kc6 {[%clk 0:00:06]} 74. Rg7 {[%clk 0:00:31.4]} 74... Kd6
{[%clk 0:00:05.1]} 75. Re3 {[%clk 0:00:31.5]} 75... Rc4 {[%clk 0:00:04.5]} 76.
Ke2 {[%clk 0:00:31.7]} 76... Kd5 {[%clk 0:00:04.7]} 77. Kd3 {[%clk 0:00:32]}
77... Ra4 {[%clk 0:00:03.6]} 78. Rg5+ {[%clk 0:00:30.8]} 78... Kd6 {[%clk
0:00:03.8]} 79. Re4 {[%clk 0:00:29.7]} 79... Ra3+ {[%clk 0:00:03.8]} 80. Kd4
{[%clk 0:00:30.2]} 80... Rxg3 {[%clk 0:00:03.3]} 81. Rexg4 {[%clk 0:00:30.8]}
1-0